{"text_format":"3","workbook":"xlsx","n_sheets":3,"sheets":["办公家具类","教玩具等木具","烘焙"],"not_rendered":{"images":3,"external_links":1,"defined_names":3},"read":"whole","date_system":"1900"}

{"sheet":"办公家具类","index":0,"n_rows":26,"n_cols":8,"rows_kept":26,"merged":[[0,0,0,7],[25,0,25,5],[25,6,25,7]]}
["办公家具"]
["序号","项目名称","规格","数量","单位","单价","合计","技术参数"]
["1","门卫室床、桌凳及安防器材","2000*1200",1,"套",6600,{"$f":"F3*D3","v":6600},"根据教育部门要求配备安保八件套：包含防刺服、警棍、头盔、盾牌、钢叉、强光手电、防割手套、辣椒水等"]
["2","办公桌","2000*900",1,"张",4280,{"$f":"F4*D4","v":4280},"1、饰面：德国进口夏特、IP饰面纸，通过GB/T 15102-2006技术标准浸渍胶膜纸饰面；具有色泽鲜明，防潮、耐磨、抗酸碱、抗弯能力强、抗污染特性；\n2、基材：采用优质E1级板,优质绿色环保产品,甲醛含量≤1.0mg/L,密度≥760kg/m3,静曲张度≥51.2Mpa,吸水膨胀率≤8.1%. （GB18580-2001），板内密度偏差、含水率、静曲强度、弹性模量、内胶合强度、表面胶合强度、2h吸水厚度膨胀率、握钉率均达到《环境标志产品认证技术要求  人造板及其制品》 （HBC 17－2003）的相关要求、GB/T 4897-2015国标标准。\n3、粘合剂：德国牛头牌乳胶；                                           4、五金配件：优质国标五金配件，优质锌合金液压阻尼铰链，国标锁芯锁具，纯铜镀铬拉手，符合金属家具通用技术条件GB/T 3325-2017。                                                                       5、加厚6公分台面水性油漆封边"]
["3","文件柜","1200*400*2000",2,"个",1880,3760,"1、饰面：德国进口夏特、IP饰面纸，通过GB/T 15102-2006技术标准浸渍胶膜纸饰面；具有色泽鲜明，防潮、耐磨、抗酸碱、抗弯能力强、抗污染特性；\n2、基材：采用优质E1级板,优质绿色环保产品,甲醛含量≤1.0mg/L,密度≥760kg/m3,静曲张度≥51.2Mpa,吸水膨胀率≤8.1%. （GB18580-2001），板内密度偏差、含水率、静曲强度、弹性模量、内胶合强度、表面胶合强度、2h吸水厚度膨胀率、握钉率均达到《环境标志产品认证技术要求  人造板及其制品》 （HBC 17－2003）的相关要求、GB/T 4897-2015国标标准。\n3、粘合剂：德国牛头牌乳胶；                                           4、五金配件：优质国标五金配件，优质锌合金液压阻尼铰链，国标锁芯锁具，纯铜镀铬拉手，符合金属家具通用技术条件GB/T 3325-2017。"]
["4","大班椅","常规",2,"张",1280,2560,"材 质：优质西皮，柔软富有韧性，厚度适中，耐磨；采用优质高密度海\n绵，软硬适中， 回弹性能好，不变形，根据人体工程学原理设计。"]
["5","会客椅","常规",38,"张",480,18240,"1.网布:透气舒适柔软有弹性，轻便干爽\n2.网架: PP粒子框架，无异味坚韧耐用\n3.扶手:稳固扶手不松动，耐蓓螺丝链接靠背、扶手、座垫- -体化，增加椅靠承重力安全有可靠\n4.座垫:加厚坐垫海绵内里填充高密度海绵，弹性好柔软舒适\n5.架子: 1.2厚电镀小半架\n6.脚垫:防滑耐磨尼龙脚垫，耐用防滑双螺丝固定，不易脱落"]
["6","茶水柜","800*300*800",2,"个",760,1520,"2、基材：采用优质E1级板,优质绿色环保产品,甲醛含量≤1.0mg/L,密度≥760kg/m3,静曲张度≥51.2Mpa,吸水膨胀率≤8.1%. （GB18580-2001），板内密度偏差、含水率、静曲强度、弹性模量、内胶合强度、表面胶合强度、2h吸水厚度膨胀率、握钉率均达到《环境标志产品认证技术要求  人造板及其制品》 （HBC 17－2003）的相关要求、GB/T 4897-2015国标标准。"]
["7","办公桌","1800*800*760",2,"张",1080,2160,"1、饰面：德国进口夏特、IP饰面纸，通过GB/T 15102-2006技术标准浸渍胶膜纸饰面；具有色泽鲜明，防潮、耐磨、抗酸碱、抗弯能力强、抗污染特性；\n2、基材：采用优质E1级板,优质绿色环保产品,甲醛含量≤1.0mg/L,密度≥760kg/m3,静曲张度≥51.2Mpa,吸水膨胀率≤8.1%. （GB18580-2001），板内密度偏差、含水率、静曲强度、弹性模量、内胶合强度、表面胶合强度、2h吸水厚度膨胀率、握钉率均达到《环境标志产品认证技术要求  人造板及其制品》 （HBC 17－2003）的相关要求、GB/T 4897-2015国标标准。\n3、粘合剂：德国牛头牌乳胶；                                           4、五金配件：优质国标五金配件，优质锌合金液压阻尼铰链，国标锁芯锁具，纯铜镀铬拉手，符合金属家具通用技术条件GB/T 3325-2017。                                                                       5、加厚6公分台面水性油漆封边"]
["8","大班椅（牛皮/科技皮）","常规",1,"张",1680,1680,"1.内铁架注定型绵\n2.多功能倾仰底盘带4档锁定 \n3.铝合金锥脚\n4.PU万向轮                                                    5.面料：优质进口牛皮，防退色及防潮，防污处理，皮面柔软舒适，光泽持久。         "]
["9","茶几","1400*700/1300*65",2,"个",1200,2400,"1、饰面：德国进口夏特、IP饰面纸，通过GB/T 15102-2006技术标准浸渍胶膜纸饰面；具有色泽鲜明，防潮、耐磨、抗酸碱、抗弯能力强、抗污染特性；\n2、基材：采用优质E1级板,优质绿色环保产品,甲醛含量≤1.0mg/L,密度≥760kg/m3,静曲张度≥51.2Mpa,吸水膨胀率≤8.1%. （GB18580-2001），板内密度偏差、含水率、静曲强度、弹性模量、内胶合强度、表面胶合强度、2h吸水厚度膨胀率、握钉率均达到《环境标志产品认证技术要求  人造板及其制品》 （HBC 17－2003）的相关要求、GB/T 4897-2015国标标准。\n3、粘合剂：德国牛头牌乳胶；                                           4、五金配件：优质国标五金配件，优质锌合金液压阻尼铰链，国标锁芯锁具，纯铜镀铬拉手，符合金属家具通用技术条件GB/T 3325-2017。                                                                       5、加厚6公分台面水性油漆封边"]
["10","办公桌","1800*800*760",2,"张",2180,4360,"1、饰面：德国进口夏特、IP饰面纸，通过GB/T 15102-2006技术标准浸渍胶膜纸饰面；具有色泽鲜明，防潮、耐磨、抗酸碱、抗弯能力强、抗污染特性；\n2、基材：采用优质E1级板,优质绿色环保产品,甲醛含量≤1.0mg/L,密度≥760kg/m3,静曲张度≥51.2Mpa,吸水膨胀率≤8.1%. （GB18580-2001），板内密度偏差、含水率、静曲强度、弹性模量、内胶合强度、表面胶合强度、2h吸水厚度膨胀率、握钉率均达到《环境标志产品认证技术要求  人造板及其制品》 （HBC 17－2003）的相关要求、GB/T 4897-2015国标标准。\n3、粘合剂：德国牛头牌乳胶；                                           4、五金配件：优质国标五金配件，优质锌合金液压阻尼铰链，国标锁芯锁具，纯铜镀铬拉手，符合金属家具通用技术条件GB/T 3325-2017。                                                                       5、加厚6公分台面水性油漆封边"]
["11","老板椅（牛皮/科技皮）","常规",1,"张",1480,1480,"1.内铁架注定型绵\n2.多功能倾仰底盘带4档锁定 \n3.铝合金锥脚\n4.PU万向轮                                                    5.面料：优质进口牛皮，防退色及防潮，防污处理，皮面柔软舒适，光泽持久。         "]
["12","老师\n办公桌","1400*700*760",4,"张",1180,4720,"1、饰面：德国进口夏特、IP饰面纸，通过GB/T 15102-2006技术标准浸渍胶膜纸饰面；具有色泽鲜明，防潮、耐磨、抗酸碱、抗弯能力强、抗污染特性；\n2、基材：采用优质E1级板,优质绿色环保产品,甲醛含量≤1.0mg/L,密度≥760kg/m3,静曲张度≥51.2Mpa,吸水膨胀率≤8.1%. （GB18580-2001），板内密度偏差、含水率、静曲强度、弹性模量、内胶合强度、表面胶合强度、2h吸水厚度膨胀率、握钉率均达到《环境标志产品认证技术要求  人造板及其制品》 （HBC 17－2003）的相关要求、GB/T 4897-2015国标标准。\n3、粘合剂：德国牛头牌乳胶；                                           4、五金配件：优质国标五金配件，优质锌合金液压阻尼铰链，国标锁芯锁具，纯铜镀铬拉手，符合金属家具通用技术条件GB/T 3325-2017。                                                                       5、加厚6公分台面水性油漆封边"]
["13","资料柜","850*390*1850",16,"个",680,10880,"1、基材:采用优质冷轧钢板经剪切、冲压、折弯、焊接装配而成,厚度达到0.8-1.2MM;"]
["14","会议桌","3600*1800*760","3.6","米",1680,6048,"1、桌面基材：桌面基材采用厚度为 25mmE1 级优三聚氰胺板，产品甲醛释放量达到 GB18580-2001、E1 级标准(密度 750kg/ m³，静曲强度≥20MPa，通过 ISO9001 质量认证），符合 GB18581-2001 测试标准，经过高温高压处理，经过防虫、防腐等化学处理。                                   2：钢架：60*20扁管，厚度1.2，承受力非常不错，外观时尚美观"]
["15","沙发","1+1+3",1,"套",2880,2880,"材 质：优质西皮，柔软富有韧性，厚度适中，耐磨；采用优质高密度海\n绵，软硬适中， 回弹性能好，不变形，根据人体工程学原理设计。"]
["16","教具、器材收纳柜",null,1,"套",4800,4800,"多层实木板、尺寸根据现场定制"]
["17","教室洗漱间吊柜",null,10,"组",680,6800,"多层实木板、尺寸根据现场定制"]
["18","教室组合柜",null,40,"米",1080,43200,"1、尺寸:现场定制。\n2、主体采用实木多层板，厚度16mm, E1级板材，所有板材均经过防虫、防腐等化学处理; ABS直封边制作;\n3、内部结构需满足幼L园不同器材的存放。"]
["19","窗帘",null,500,"平方米",120,60000,"布料：考拉防水遮光防晒布，配件：包含挂杆、打孔，免费安装，窗帘布料安实际窗户尺寸据实结算，窗帘颜色可选（根据幼儿园颜色在同一布料内进行选择）。窗帘自带LOGO标识"]
["20","阅览室书柜","9000W*2000H*390D",15,"米",1880,28200,"多层实木板、尺寸根据现场定制                                                                                                          1.框体采用18mm厚优质环保橡木纹三聚氰胺双贴面全桉全连心实木多层板，甲醛释放量符合GB18580-2017标准要求。（提供多层基板板甲醛释放量检测报告）\n2、表面耐磨、耐污、耐划伤，易清洁，耐磨测试250R无透底现象。\n3、优质PVC边条封边，邻苯二甲酸酯含量符合国家标准规范的要求。 （提供家具封边条邻苯二甲酸酯含量检测报告）    \n4、五金件选用环保五金，安全无毒。符合国家标准规范的要求，钡、铅、镉、锑、硒、铬、汞、砷等含量控制指标完全符合要求。（提供五金件8大重金属检测报告） \n5、采用踢脚板设计，即增加了稳定性，又可以防止杂物进入柜底。柜体底部配以耐磨塑胶PP脚钉，对地板等地面材料起到保护作用。\n6、柜体内部格局分为三个独立柜组成，边角安全防撞设计，各个柜角及板边均充分参考相关标准的要求，对所有的外露面、外漏角进行弧状倒角设计，避免锐角的产生，最大程度的避免儿童磕碰伤害。结构稳固，不易倾倒。全面采用圆角设计，安全缝隙和孔洞均符合GB28007-2011儿童家具通"]
["21","阅览室凳子","1200W*750H*601D",5,"张",180,900,"多层实木板、根据现场尺寸定制，据实结算"]
["22","榻榻米",null,6,"米",1280,7680,"多层实木板、根据现场尺寸定制，据实结算"]
["23","置物架","1500x600x2000",2,"个",1380,2760," 1.主体:钢板\n采用0.8mm厚家具用优质冷扎钢板正常使用不会变形。                                                                                       2.塑粉:塑粉采用90019静电喷塑盼，光泽度260*%、硬度22H，柔韧性s2mm，冲击强度250Kg.cm，耐水性、耐酸\n性、耐碱性、耐汽油性、耐热性均不泡不脱落,符合现行国家标准行业标准。"]
["合计",{"$nulls":5},{"$f":"SUM(G3:G25)","v":{"v":227908,"d":"227,908.00"}}]

{"sheet":"教玩具等木具","index":1,"n_rows":16,"n_cols":8,"rows_kept":16,"merged":[[0,0,0,7],[15,0,15,5],[15,6,15,7]]}
["教玩具等木具"]
["序号","项目名称","规格","数量","单位","单价","合计","技术参数"]
[1,"美术作品晾干架","48x40x80cm橡木",6,"个",660,{"$f":"D3*F3","v":3960},"1.材质：主要采用15mm环保橡胶木拼板贴桦木纹三聚氰胺纸搭配铁架网而成，板材具有非常好的总体强度性能和耐磨性能，承重能力强、韧性好，保养容易，稳定性高；色泽浅，容易着色、能接受所有类型颜色的染色和涂料，易与别种木材的颜色基调相配合，油漆涂装性能好。\n2.封边：采用环保水性木蜡油进行封边，更好的耐候性、附着力，耐紫外线，绿色环保，通过高强力渗透进入木材内部，与木材有机地结合，形成网状组织既有效地阻止水分进入，从而有效地控制木材开裂，延长木材使用寿命，又能突显木材的天然纹理美感。\n3.五金：采用优质五金，稳固不松动，五金表面经防锈处理，强度高、硬度高、寿命长，五金件表面特定元素的迁移符合标准要求，锑、砷、钡、镉、铬、铅、汞、硒等八大重金属含量符合GB6675.4-2014标准要求。\n4.铁架网：整体尺寸388*463mm，满足绘画纸张A4/A3尺寸的晾干，铁架四周采用φ4.3mm粗铁网，中间采用φ2.2mm细铁网，内空每格29.5*61mm，稳固且有助于绘画晾干，铁网为活动式，可按实际使用需求拆卸，适用于晾干不同尺寸大小的作品。\n5.塑料档格：采用优质塑料成型，共9层设计，每层之间间隔64mm，充分合理的利用空间。\n6.脚轮：采用优质塑料TPR静音万向轮，方便移动，脚轮外观要求符合QB/T4765-2014标准要求。\n7.其它：围脚高度：40mm；顶部收纳格内空尺寸：470*354*40mm；上下格内空尺寸：470*390*55mm,方便美术成品的放置，晾干，防止美术颜料污染园所地板，铁网架方便拆卸；底部安装4个1.5寸静音万向轮;进口橡木圆角设计、透明环保高级家具油漆"]
[2,"原木小屋造型门头","80x155cm橡木",1,"个",564,564,"进口橡木圆角设计、透明环保高级家具油漆，"]
[3,"原木直栅栏","110x60cm橡木",9,"个",660,5940,"进口橡木圆角设计、透明环保高级家具油漆"]
[4,"原木售卖台","95x35x140cm橡木",3,"个",920,2760,"1.木材：主要采用≥16mm橡胶木拼板，橡胶木拼接板需符合LY/T2488-2015《实木拼接板》及GB18580-2017《室内装饰装修材料 人造板及其制品中甲醛释放限量》的标准，其中甲醛释放量未检出。板材具有非常好的总体强度性能和耐磨性能，承重能力强、韧性好，保养容易，稳定性高；色泽浅，容易着色、能接受所有类型颜色的染色和涂料，易与别种木材的颜色基调相配合，油漆涂装性能好。\n2.水性漆：采用环保水性漆，全封闭涂装工艺，漆面光泽度高，无颗粒、无气泡、无渣点，颜色均匀、漆膜丰满、柔韧性好并且具有耐水、耐磨、耐老化、耐黄变、耐霉菌、干燥快等特点。\n3.五金：采用优质五金，稳固不松动，五金表面经防锈处理，强度高、硬度高、寿命长，符合国家标准规范的要求。进口橡木圆角设计、透明环保高级家具油漆。                                                                                                                              4.背板：采用≥5mm中纤双面板背板；"]
[5,"交通标志地毯","220x180cm",3,"张",920,2760,"1.采用优质尼龙纱线环保材料，弹性好而且富有光泽，具有很好的耐磨性和脚感，底部带防滑垫；\n2.地毯内容丰富多彩，可让小朋友在游戏中学会认知，在课室的区角摆放中增添色彩。\n3.产品参数：高：0.6cm,宽220cm,长180cm"]
[6,"毛巾架","90*35*90cm\n36个钩",9,"个",650,5850,"框体采用优质环保橡木纹三聚氰胺双贴面全杨全连心实木多层板"]
[7,"口杯架","60*30*118cm",9,"个",880,7920,"进口橡木板，圆角设计、透明环保高级家具油漆"]
[8,"门头（小班）","90*20*150",2,"个",688,1376,"1.框体采用18mm厚优质环保橡木纹三聚氰胺双贴面全桉全连心实木多层板，甲醛释放量符合GB18580-2017标准要求。\n2、表面耐磨、耐污、耐划伤，易清洁，耐磨测试250R无透底现象。\n3、优质PVC边条封边，邻苯二甲酸酯含量符合国家标准规范的要求。 \n4、五金件选用环保五金，安全无毒。符合国家标准规范的要求，钡、铅、镉、锑、硒、铬、汞、砷等含量控制指标完全符合要求。\n5、花瓣形屋顶图采用丝印工艺处理，颜色不易脱落，且所使用的丝印油墨均为环保材料，重金属钡、铅、镉、锑、硒、铬、汞、砷等含量符合国家标准规范的要求。\n6、柜底配以耐磨塑胶PP脚钉，对地板等地面材料起到保护作用。\n7、边角安全防撞设计，各个柜角及板边均充分参考相关标准的要求，对所有的外露面、外漏角进行弧状倒角设计，避免锐角的产生，最大程度的避免儿童磕碰伤害。结构稳固，不易倾倒。全面采用圆角设计，安全缝隙和孔洞均符合GB28007-2011儿童家具通用技术条件的要求。"]
[9,"语言区小班 ",null,3,"套",3980,11940,"1.产品参数大类：\n16盒操作材料，分别为妙语连珠、趣味洞洞卡、去做客、神奇的水管工、我来晾衣服、快乐幼儿园、三只蝴蝶、龟兔赛跑、小兔乖乖、拔萝卜、材料包1、材料包2、字模组1、字模组2、桌游组1、桌游组2，配有点读笔，可以进行有声点读。\n2.参数明细：\n磁铁书套装1套，说明书 1套贴纸1套，点读说明手册1本，点读笔1支，包装袋1个，活动实施方案 1本，扣环3个，游戏卡 1套，游戏底盘1张，木质棋子1套，猜拳骰子2个，游戏卡1套，奖励花片1套，游戏底卡 1套，小木夹1套，晾衣架1个，故事拼1套，扣环1个，教师幼儿指偶套装（角色指偶）1套，立体书 1本，角色积木1套，故事拼图1套，扣环1个，蝴蝶仙女棒1套，《三只蝴蝶》，拼插套装 1套，插卡底板1个，角色插卡1套，场景插卡1套，故事拼图1套，龟兔赛跑跑道套装 1套，塑料小车1套，木质小车1套，角色贴纸1张，特色玩偶套装（角色指偶） 1套，情景底纸1张，《拔萝卜》蝴蝶翅膀1套，花朵头饰1套，大灰狼套装1套，小兔套装1套，贴纸1张字模1套，复写板1个，汉字翻翻书1本，说明书1套字模1套，复写板1个，汉字翻翻书1本，字卡片1套，汉字画1套，游戏卡片1套，游戏底纸1套，点子骰子1个，木质棋子1套，奖励花片8个"]
[10,"建构区小班",null,3,"套",3980,11940,"1.产品主要参数大类\n小班材料配套：主体积木336块，主题辅材：关节人偶Ⅰ、关节人偶Ⅱ、袖珍衣架、卧室套装、茶壶套装、厨房套装、袖珍沙发、袖珍茶几、大树积木Ⅲ、仿真草坪、班级门牌、园所门牌。\n2.参数明细\n积木组（材质：新西兰松木）\n小方块：规格：长6*宽6*3厚cm；数量：20块，基本块：规格：长12*宽6*厚3cm；数量：90块，双倍块；规格：长24*宽6*厚3cm；数量：30块，小方柱；规格：长6*宽3*厚3cm；数量：20块，方柱块；规格：长12*宽3*厚3cm；数量：30块，大方柱；规格：长24*宽3*厚3cm；数量：30块，圆柱体；规格：直径6*高12cm；数量：10块，罗马拱形；规格：长12*高6*拱高3*厚3cm；数量：4块，小半圆；规格：长6*高3*厚3cm；数量：20块，大半圆；规格：长6*高6*厚3cm；数量：4块，1/4圆：规格：长6*高6*厚3cm；数量：20块，小三角：规格：长6*高6*厚3cm；数量：20块，双倍平板：规格：长24*宽6*厚1.5cm；数量：10块，大弯曲；规格：长24*宽12*厚3cm；数量：4块，彩虹大方块：规格：长6*宽6*厚3cm；颜色：蓝绿各1个，红黄各2个；数量：6块，彩虹双倍块：规格：长12*宽6*厚3cm；颜色：红黄各1个、蓝绿各2个；数量：6块，彩虹大半圆：规格：长24*宽12*厚3cm；颜色：红黄各1个、蓝绿各2个；数量：6块，彩虹大三角块：规格：长12*宽12*厚3cm；颜色：蓝绿各1个、红黄各2个；数量：6块。\n情景材料组 \n袖珍沙发：材质：木质+布；规格：长8.1*宽6.5*高7.5cm；数量：1个。袖珍茶几：数量：1个；材质：木质；规格：长9*宽4.5*高3.5cm\n袖珍电脑转椅：数量：1个；材质：塑料；规格：12.3*5.3*7cm。厨房套装：数量：1套；材质：塑料；规格：23*18*5.5cm；数量：53件/套。茶壶套装：数量：1套；材质：塑料；数量：一把带盖水壶+2个茶杯+2个小盘子+2根勺子+3块饼干；规格：带盖水壶（11*7*6.5cm) 茶杯6*5*3.3cm) 2块圆饼干（6*1*6cm) 1块方形饼干（5.4*1.5*5.4cm) 小盘子（8*1.2*8cm) 勺子（10*0.2*2cm)。袖珍衣架：数量：1个；材质：塑料；规格：高12cm。关节人偶Ⅰ：数量：4个；材质：木质+布；规格：高9cm\n关节人偶Ⅱ：数量：4个；材质：木质+布；规格：高9cm。卧室套装：数量：1套；材质：木质；规格：长14*宽10cm。仿真草坪：数量：1块；材质：塑料；规格：长58*宽40cm。班级/园所门牌：数量：15张/套，共2套；材质：PP背胶纸；规格：长14*宽7cm\n大树积木Ⅲ：数量：5个；材质：密度板；规格：高11*宽7.7*厚0.3cm；颜色：彩色。环创材料 积木形状贴纸：数量：15张；材质。80g铜版纸(白底)不干胶 ；规格：高10*宽14cm；工艺：覆膜\n区域标识牌：数量：1张；材质：300g铜版；规格：高42*28宽cm；工艺：覆膜；印刷：正四反零、区域规则牌：数量：1张；建构区指导图卡 数量：24张/套；活动指导方案 数量：1本；附游戏示范DVD1片"]
[11,"角色区小班",null,3,"套",2980,8940,"1.产品主要参数大类：\n小班主题活动设置为4个活动区。分别为:娃娃家、医院、小吃店、小汽车、游戏百宝盒；游戏共设有24个主题活动。\n2.参数明细\n领带3个，围裙3个，玩偶3个，玩偶服饰3套，厨具3套，蔬菜水果玩具3套，理发工具套装3套，毛巾3个，奶瓶3个，搓衣板3个，藤编篮3个，外盒1个，医生服套装1套，护士服套装1套，医生工具箱套装1套，外盒1个，面条机1套，厨师帽4个，厨具套装1套，蒸笼2个，木勺子套装1套，擀面杖2个，小切刀1套，桌面扫把簸箕套装1套，收银机1个，塑料圆片1套，外盒1个，马甲2个，白手套2副，车身轧型1套，小汽车插板1套，外盒1个，圆形纸盘10个，长方形纸盘10个，纸黏土1套，海绵10个，毛线1套，泡沫棒3套，圆纸筒10个，保利龙板10个纸盒1个，游戏实施方案1本\n3.产品资质："]
[12,"表演区小班",null,3,"套",2980,8940,"1.产品主要参数大类\n小班主题活动设置2各部分，一个是故事表演，一个是音乐表演。故事表演包含主题活动为：谁在洗澡、棉花姑娘、小山羊的圣诞节、小公鸡和小鸭子、七彩象、聪明的乌龟；音乐表演包含：我爱我的幼儿园、粉刷匠、新年好、春天、小老鼠上灯台、哇哈哈、乐器包。\n2.参数明细\n晾衣架1个，夹子1个，EVA花朵2个，动物指偶1个，幕布1个，点读笔（含充电器及USB连接线）1个，点读录音贴纸1个，点读说明手册1个，包装袋1个，外盒1个，小狗头饰1个，小鸟翅膀1个，小鸡头饰1个，大象头饰1个，棉花头饰1个，瓢虫头饰1个，啄木鸟头饰1个，青，头饰1个，小虫指偶1个，自封袋1个，山羊帽子1个，小猫头饰1，小狗头饰1个，小牛头饰1个，小公鸡帽子1个，大象帽子1个，小猫头饰1个，小兔子头饰1，披风1个，彩色布1个，自封袋 1个，乌龟壳 1个，青蛙套装1，狐狸套装1个，故事表演套装外盒1个，手腕花1个，手腕花1个，丝巾1个，滚筒刷1个，头巾1个，儿童袖套2个，自封袋1个，红灯笼，手腕花1个 ，花朵手偶1个，蜜蜂发箍1个，自封袋1个，老鼠爪子手套1个，猫咪爪子手套1，新疆帽子1个，新疆帽子1，圆舞板2个，串铃1个，沙锤2个，铃鼓2个，碰铃2，音乐曲谱1 个\n音乐表演套装外盒1个，游戏实施方案（含DVD）1个"]
[13,"区角玩具（益智区小班）",null,3,"套",4980,14940,"1.产品主要参数大类：\n16盒活动材料，分别为喂熊宝宝、数字找朋友、形状大集合、数来数趣、小卡片找家、动物配一配、方位说一说、乐思维1、看谁放的稳、可爱的毛毛虫、雨中世界、我爱接龙、水果排排乐、穿衣搭配、过大年。\n2.参数明细\n大熊套盒1个，小熊套盒1个，勺子套装1套，大号水果模型1套，小号水果模型1套，3cm颜色骰子（红黄绿各2面）1个，3cm大小骰子1个，3cm大小颜色骰子 1个，3cm点子骰子1个，“1和许多”骰子1个，月亮船套装1套，B1•3情境图卡1套，图形嵌板1套，窗帘嵌板1套，底座1个，插柱1套，插珠1套，游戏卡1套，任务卡1套，毛毛虫套装1套，单人游戏底板1套，双人游戏底板1张，棋子组（红2、黄、绿、蓝）1套，点子骰子（点子1～3各2面）1套，雨中世界拼图4套，花样接龙骨牌1套，分类底座1个房屋插板1个，排序挂毯1个挂钩1套，水果粘扣1套糖葫芦游戏卡1套，蛋糕游戏卡1套，蓝色半透明塑料箱1个，洞板1套，木棒（10cm*直径0.85cm）1套，木棒（7cm*直径0.85cm）1套，树冠图卡1套，游戏卡1套棋子组（红、蓝）1套，点子骰子（点子1～3各2面）1个，场景底卡1套，人物底板1套，衣服拼块1套，人物底座1套1个，小河底板1个，拱桥积木1个，黄汽车积木1个，人偶积木1套，小船积木1个，方位骰子1个，游戏卡1套，魔轮板1套，乐思维游戏卡1套，记录单1套"]
["合计（元）",{"$nulls":5},{"$f":"SUM(G3:G15)","v":87830}]

{"sheet":"烘焙","index":2,"n_rows":102,"n_cols":9,"rows_kept":102,"merged":[[0,0,0,8],[1,2,1,3],[2,2,2,3],[3,2,3,3],[4,2,4,3],[5,2,5,3],[6,2,6,3],[7,2,7,3],[8,2,8,3],[9,2,9,3],[10,2,10,3],[11,2,11,3],[12,2,12,3],[13,2,13,3],[14,2,14,3],[15,2,15,3],[16,2,16,3],[17,2,17,3],[18,2,18,3],[19,2,19,3],[20,2,20,3],[21,2,21,3],[22,2,22,3],[23,2,23,3],[24,2,24,3],[25,2,25,3],[26,2,26,3],[27,2,27,3],[28,2,28,3],[29,2,29,3],[30,2,30,3],[31,2,31,3],[32,2,32,3],[33,2,33,3],[34,2,34,3],[35,2,35,3],[36,2,36,3],[37,2,37,3],[38,2,38,3],[39,2,39,3],[40,2,40,3],[41,2,41,3],[42,2,42,3],[43,2,43,3],[44,2,44,3],[45,2,45,3],[46,2,46,3],[47,2,47,3],[48,2,48,3],[49,2,49,3],[50,2,50,3],[51,2,51,3],[52,2,52,3],[53,2,53,3],[54,2,54,3],[55,2,55,3],[56,2,56,3],[57,2,57,3],[58,2,58,3],[59,2,59,3],[60,2,60,3],[61,2,61,3],[62,0,62,3],[63,2,63,3],[64,2,64,3],[65,2,65,3],[66,2,66,3],[67,2,67,3],[68,2,68,3],[69,2,69,3],[70,2,70,3],[71,2,71,3],[72,2,72,3],[73,2,73,3],[74,2,74,3],[75,2,75,3],[76,2,76,3],[77,2,77,3],[78,0,78,3],[79,2,79,3],[80,2,80,3],[81,2,81,3],[82,2,82,3],[83,2,83,3],[84,2,84,3],[85,2,85,3],[86,2,86,3],[87,0,87,3],[88,2,88,3],[89,2,89,3],[90,2,90,3],[91,2,91,3],[92,2,92,3],[93,2,93,3],[94,2,94,3],[95,2,95,3],[96,2,96,3],[97,2,97,3],[98,2,98,3],[99,2,99,3],[100,2,100,3],[101,0,101,6],[101,7,101,8]]}
["非遗特色 美育教室——烘焙坊"]
["序号","名称","技术参数",null,"数量","单位","单价","小计","型号"]
[1,"老式雷钵","√材质：陶器，木质\n尺寸：≥擂钵口径170mm，擂棒长21mm\n标配：小号擂钵+擂棒\n用途：用于研磨的工具，可作为教室环创展示等",null,1,"套",170,{"$f":"G3*E3","v":170}]
[2,"石臼套装","√材质：石材\n尺寸：≥石臼：高103mm，直径105mm，石杵：高140mm，直径45mm\n标配：石杵1个，石臼1个\n用途：研磨工具",null,4,"套",98,392]
[3,"柳编簸箕","材质：藤条，柳木\n尺寸：320*300*90mm",null,4,"个",138,552]
[4,"炊帚","√材质：实木，椰棕丝\n尺寸：长200mm，直径21mm\n用途：清洁工具，用于清扫石磨等",null,4,"把",10,40]
[5,"箩筐-1型","√材质：柳木\n尺寸：≥长490宽300高115mm\n用途：置物，或用于学习制作元宵的工具，食育活动中滚元宵可用",null,2,"个",275,550]
[6,"竹制盖帘","√材质：天然竹，尼龙包边\n尺寸：≥直径390mm\n用途：传统收纳、置物板，可盛放面食作品等",null,2,"个",50,100]
[7,"蒸笼盖","材质：竹\n尺寸：直径250mm\n",null,2,"个",58,116]
[8,"蒸屉套装","√材质：竹制\n尺寸：≥直径250mm\n标配：3层/套\n用途：蒸制工具，可用于食育活动面食或其他食材的蒸煮",null,2,"套",185,370]
[9,"竹筒","√材质：竹质\n尺寸：外直径32-34mm长度180mm\n用途：辅助工具，可用于制作竹筒饭，盛放食材等。",null,12,"件",19,228]
[10,"豆腐模具套装","材质：原木\n内径尺寸：160*120*95mm\n说明：豆腐制作工具",null,4,"套",150,600]
[11,"花馍梳子","√材质：塑料\n尺寸：≥长90mm宽50mm\n用途：花馍辅助工具，用于装饰花馍，在面食上制作肌理",null,4,"件",6,24]
[12,"擀面杖-3型","√材质： 实木\n尺寸：≥长300mm，直径26mm\n用途：用于手动擀压,可将面食或泥巴通过挤压擀制成薄厚均匀的饼状",null,13,"跟",9,117]
[13,"案板","材质：竹\n尺寸：500*340*18mm",null,4,"个 ",159,636]
[14,"筷子","√材质：楠木\n尺寸：≥长240mm\n说明：无漆，无蜡\n用途：辅助工具",null,13,"双",2,26]
[15,"竹帘","√材质：竹\n尺寸：≥长200mm宽200mm\n用途：寿司制作工具",null,13,"个",15,195]
[16,"叉子","√材质：304不锈钢\n尺寸：≥长150mm宽24mm\n说明：花馍辅助工具，用于食育活动制作条形纹理",null,13,"个",50,650]
[17,"勺子","√材质：304不锈钢\n尺寸：≥勺长135mm勺面宽35mm\n说明：辅助工具",null,13,"个",30,390]
[18,"过滤器套装","材质：304不锈钢\n尺寸：长140mm宽77mm\n说明：蛋液分离，材质安全，",null,4,"套",25,100]
[19,"揉面垫","√材质：硅胶\n尺寸：≥长500mm宽395mm\n用途：垫板，可用于儿童食育活动揉面，制作面食使用等",null,4,"张",50,200]
[20,"硅胶刮刀","√材质：食品级硅胶；\n尺寸：≥长210mm宽40mm\n说明：挂孔设计，使用方便，手握感舒适，食品级硅胶，隔热，环保，无毒\n用途：可用于搅拌、刮抹等",null,4,"个",10,40]
[21,"油刷","√材质：食品级硅胶+PP\n尺寸：≥长210mm宽35mm\n用途：烧烤、刷油、刷酱料、刷油等",null,2,"把",10,20]
[22,"刮板","√材质：环保塑料\n尺寸：≥长152mm104mm，中号\n用途：整形切割",null,4,"个",6,24]
[23,"厨师刀套装","√材质：400系列不锈钢\n尺寸：≥长315mm宽45mm\n标配：厨师刀1把 刀具保护套1个\n用途：教师用具，可做演示时使用。",null,1,"套",198,198]
[24,"刀具保护套","材质：PP塑料+绒布；\n尺寸：220*55mm；\n说明：教师刀具配套",null,1,"个",150,150]
[25,"安全刀","材质：食用级PP\n尺寸：200*4mm\n说明：切割",null,4,"把",20,80]
[26,"沥水框","√材质：环保PP塑料；\n尺寸：≥长320mm宽220mm高110mm\n用途：可用于沥水、置物等",null,2,"个",50,100]
[27,"封口夹套装","材质：PP\n尺寸：115*15*20mm\n说明：食品保鲜防潮封口夹",null,2,"套",15,30]
[28,"剪刀-3型","√材质：不锈钢刀片，ABS塑料握手\n尺寸：≥长122mm宽53mm；\n说明：配有护套，刀尖圆角设计，专为儿童设计\n用途：裁剪工具",null,13,"把",16,208]
[29,"防烫夹套装","√材质：硅胶、不锈钢\n尺寸：≥取碗器170*40mm；提盘夹177mm；TPR手套长85mm宽85mm\n用途：防烫，取物，用于食育中夹取烹饪好的盘子等，保护手部，防止烫伤",null,1,"套",160,160]
[30,"餐夹","材质：304不锈钢\n尺寸：315*40mm\n说明：耐高温，取物夹，圆头",null,2,"把",120,240]
[31,"不锈钢盆-3型","√材质：食品级304不锈钢\n尺寸：≥内径153mm高85mm;\n用途：置物，可用于食育活动揉面、发酵面团或者盛放食材等",null,13,"个",40,520]
[32,"不锈钢盆-4型","√材质：食品级304不锈钢\n尺寸：≥内径274mm高125mm\n用途：置物，可用于食育活动揉面、发酵面团或者盛放食材等",null,2,"个",72,144]
[33,"不锈钢盘","√材质：食品级304不锈钢\n尺寸：≥直径198mm高15mm;\n用途：置物，用于盛放果蔬或者摆放蔬菜等",null,4,"个",28,112]
[34,"筛子-4型","材质：整体304不锈钢\n尺寸:200*50mm;目数：50目;\n说明：粉质食材筛取",null,4,"个",125,500]
[35,"三明治制作器","材质：塑料\n尺寸：150*170mm\n说明：三明治、吐司压边",null,4,"个",65,260]
[36,"传唤铃","√材质：金属\n尺寸：≥直径85mm高60mm\n说明：声音清脆，一键按压\n用途：传菜铃铛，用于儿童食育活动体验餐饮服务一项",null,1,"个",30,30]
[37,"月饼模具-1型","√材质：榉木\n尺寸：模具尺寸：≥长350mm宽80mm厚25mm;成品尺寸：≥长55mm宽55mm厚18mm\n成品重约：50g\n工艺：立体凹底雕刻\n用途：烘焙模具，制作月饼或者其他面食形状和图案",null,1,"个",119,119]
[38,"月饼模具套装-2型","√材质：榉木\n模具尺寸：≥长350mm宽75mm高25mm\n标配：3件/套\n工艺：立体凹底雕刻\n用途：烘焙模具，制作月饼或者其他面食形状和图案",null,1,"套",524,524]
[39,"月饼模具套装-3型","√材质：食品级ABS材质+不锈钢\n尺寸:50g合家团圆花片直径46mm4花片；50g方汽车小熊花片直径40mm6花片；50g花中秋快乐花片直径46mm4花片；50g寿桃花片直径47mm5花片\n说明：样式丰富，纹路清晰；手压操作，脱模容易；材质安全，无毒无味\n用途：烘焙模具，制作月饼或者其他面食形状和图案",null,1,"套",120,120]
[40,"饭团模具","材质：食品级PP\n说明:饭团辅助工具",null,4,"个",35,140]
[41,"水果切花模具套装","材质：430不锈钢+PP\n尺寸：≥小号：40*30mm\n大号：55*45mm\n说明：采用优质430不锈钢材质，强度高、硬度好，安全卫生，坚固耐用，不易变形、不易生锈，易清洁、好打理",null,4,"套",69,276]
[42,"模具-5型","√材质：食品级304不锈钢\n尺寸：≥长210mm\n用途：辅助工具，用于食育轻松挖球、制作拼盘",null,4,"件",95,380]
[43,"饼干模具套装","√材质：不锈钢\n尺寸：小号长80mm宽55mm中号长100mm宽72mm大号长125mm宽93mm\n说明：饼干模具，可制作姜饼人造型饼干或其他面食。",null,4,"套",22,88]
[44,"蛋糕模具","√材质：碳钢，不粘涂层\n尺寸：≥长255mm宽195mm深22mm；\n用途：用于食育制作蛋糕、面食类，固定形状。",null,4,"件",78,312]
[45,"裱花嘴","尺寸：圆口花嘴36*19mm;叶形花嘴33*19mm;九齿花嘴30*19mm;五齿花嘴37*19mm;寿桃花嘴34*19mm;玫瑰花嘴33*19mm;材质：304不锈钢;用途：奶油裱花、曲奇、饼干等",null,4,"个",55,220]
[46,"裱花嘴转换器","√材质：全新料环保PP（不含双酚A）\n尺寸：≥上口13mm下口21mm高32mm;\n用途：裱花嘴配件，用于烘焙制作饼干，用奶油装饰纹样等",null,13,"套",7,91]
[47,"裱花嘴清洁刷","√材质：食品级材料\n尺寸：≥长210mm\n用途：裱花嘴清洁刷",null,2,"个",7,14]
[48,"高温布","√材质：0.13mm玻璃纤维图层\n尺寸：≥长275mm宽245mm;\n用途：烘焙烤盘垫布，可重复使用",null,2,"块",110,220]
[49,"量勺-1型","√材质：304不锈钢\n尺寸：≥长145mm勺面宽30mm\n用途：量具，用于食育教室取用定量调味品或辅助食材",null,4,"个",50,200]
[50,"量勺-2型","√材质：304不锈钢\n尺寸：≥长174mm勺面宽46mm\n用途：量具，用于食育教室取用定量调味品或辅助食材",null,4,"个",60,240]
[51,"量勺套装-2型","√材质：304不锈钢\n尺寸：≥15ml：长126mm宽40mm;\n7.5ml：长120mm宽32mm;\n5ml：长116mm宽28mm;\n2.5ml:长115mm宽23mm;\n0.63ml:长107mm宽15mm;\n用途：量具，用于食育教室取用定量调味品或辅助食材",null,1,"套",139,139]
[52,"量杯套装","√材质：PVC塑料\n尺寸：≥直径：80mm高95mm，直径：100mm高115mm，直径125mm高145mm\n容量：250ml；500ml：1000ml\n说明：加厚耐高温，刻度清晰准确，防漏嘴设计\n用途：量具，用于需要精确水量时测量",null,4,"套",32,128]
[53,"储物罐","材质：PP+硅胶密封圈\n尺寸：长150mm宽80mm高290mm\n说明：收纳五谷杂粮，密封防潮",null,4,"个",35,140]
[54,"调味罐套装","√材质：玻璃、塑料\n尺寸：≥整体长145mm宽145mm高160mm，罐长45mm宽45mm高95mm，\n标配：9件组合\n用途：调味料储藏用具，可盛放多种不同的调味品",null,2,"套",320,640]
[55,"厨房电子秤","√材质：优质塑料；\n尺寸：≥长225mm宽155mm高35mm\n说明：称重10kg，分度值1g\n用途：物料称重，全面精准",null,2,"套",88,176]
[56,"点心篮","√材质：竹制;\n尺寸：≥一层直径140mm，二层直径160mm，;三层200mm，总高约460mm;\n用途：置物篮，或摆放展示作品及材料",null,2,"个",158,316]
[57,"收纳筐-1型","√材质：天然水草\n尺寸：≥长340mm宽240mm高70mm\n用途：收纳",null,2,"个",110,220]
[58,"收纳筐-2型","√材质：天然水草\n尺寸：≥长370mm宽275mm高80mm;\n用途：可用于分类收纳的工具",null,2,"个",98,196]
[59,"盘子收纳架","√材质：楠竹\n尺寸：≥长390mm宽100mm高100mm;\n用途：可用于收纳、整理餐具",null,2,"个",110,220]
[60,"托盘","材质：竹\n尺寸：400*300*20mm",null,2,"个",198,396]
["三：材料类",{"$nulls":6},0]
[1,"帽子围裙套装-1型","√材质：涤棉\n尺寸：≥帽子230*220-270mm;围裙510*40mm;袖套200*70-130mm;\n用途：护具，用于食育课程，儿童操作时，防止油渍沾染到衣服上",null,12,"套",84,1008]
[2,"帽子围裙套装-2型","√材质：涤棉\n尺寸：≥帽子270*240-300mm;围裙600*480mm;袖套290*90-150mm\n用途：护具，用于食育课程，教师操作时，防止油渍沾染到衣服上",null,1,"套",90,90]
[3,"透明口罩a","√材质：优质塑料\n标配：10个/盒，无纺布\n特性：口罩专用挂耳线，可调节皮圈\n用途：防飞沫，有效防止飞沫传染途径，安全卫生",null,2,"盒",240,{"$f":"G66*E66","v":480}]
[4,"裱花袋套装","材质：食品级PE塑料材质\n尺寸：≥长170mm宽260mm\n用途：裱花、曲奇、饼干袋",null,2,"套",49,98]
[5,"锡纸-1型","√材质：8011铝箔;\n尺寸：≥长10m宽300mm\n用途：辅助食材制作",null,1,"卷",55,55]
[6,"双面油纸","√材质：硅油纸\n尺寸：≥长10m宽300mm\n说明：耐高温、防潮、防油\n用途：烘烤点心垫在下面，防止粘连",null,1,"卷",45,45]
[7,"保鲜膜","尺寸：总长20m宽200mm；\n原料：PE聚乙烯\n说明：辅助食材制作",null,1,"卷",28,28]
[8,"加厚密实袋","材质：PE\n尺寸：≥长180mm宽208mm\n用途：密封袋，辅助食材制作",null,1,"盒",78,78]
[9,"蒸布","√材质：棉\n尺寸：≥直径300mm\n说明：蒸屉垫布，用于蒸制食材时平铺在蒸屉中",null,6,"块",10,60]
[10,"纱布","√材质：纯棉细纱布\n尺寸：≥长1200mm宽1000cm\n用途：食物制作辅助工具，可过滤食材水分",null,4,"块",26,104]
[11,"滤袋套装","材质：玉米纤维、尼龙、纸\n尺寸：≥长58mm宽70mm\n说明：茶包滤袋",null,8,"套",89,712]
[12,"手套-3型","材质：食品级认证PVC\n规格：20只/盒",null,2,"盒",80,160]
[13,"手套套装","材质：PVC\n尺寸：S码65-80*320mm;\n说明：清洗工具时使用，共单层与加绒两款，满足不同季节的需求",null,1,"套",60,60]
[14,"清洁工具套装","材质：铜丝、不锈钢丝、PP丝、PP、海绵、金属、塑料\n清洁刷3个，尺寸：170*11mm\n长柄杯刷1个，尺寸：52*215mm\n海绵擦4个\n钢丝球4个\n清洁铲1个\n锅刷1个\n说明：餐具清洁",null,1,"套",96,96]
[15,"垃圾袋套装","材质：聚乙烯PE材质+可降解生物材料\n尺寸：≥长300mm宽545mm\n说明：手提设计方便拿取；添加可降解生物材料，加速降解，回归生物圈；垃圾分类标识设计，将垃圾分类贯穿生活",null,1,"套",165,165]
["四：家具类",{"$nulls":6},0]
[1,"白色防油桌布","材质：PVC\n尺寸：1700*1200mm\n说明：防水、防油、抗热",null,2,"块",210,420]
[2,"实木操作桌-4型","材质：实木\n尺寸：长1500mm宽800mm高550mm（±5mm）\n用途：学生操作桌",null,2,"张",2200,4400]
[3,"实木凳-1型","材质：柏木\n尺寸：凳面长270mm宽270mm，高300mm，双脚长240mm宽240mm（±5mm）\n最大承重：150kg\n产品特点：柏木结实耐用、纹理清晰、细腻，香气清香，防腐防潮能力强\n用途：学生座椅",null,12,"把",120,1440]
[4,"绘本收纳架-1型","材质：实木，松木\n尺寸：800*300*780mm\n说明：绘本收纳",null,1,"件",500,500]
[5,"爱吃青菜的鳄鱼","书名：《爱吃青菜的鳄鱼》、《爱吃水果的牛》，出版社：明天出版社",null,1,"本",190,190]
[6,"餐桌上的礼仪","开本：20开，出版社：天津教育出版社",null,1,"本",140,140]
[7,"肚子里的小人","开本：16开，出版社：北京联合出版公司",null,1,"本",98,98]
[8,"三层实木展架-1型","材质：松木\n尺寸：长795mm宽300mm高750mm（±5mm）\n标配：螺丝12个\n用途：学成成品展示架、物品材料置物架",null,2,"个",680,1360]
["五：环境创作类",{"$nulls":6},0]
[1,"香辛料展示套装（幼儿）","材质：樟子松陈列架、40种香辛料实物、尺寸：752*1193*130mm\n说明：四十种中外香辛料实物展示，从色、形、味几方面拓展孩子的视野;",null,1,"套",2800,2800]
[2,"香料标签","材质：牛皮纸、麻绳\n尺寸：20*40mm 40种/套\n说明：香料标签，定制",null,1,"套",48,48]
[3,"使用规范板","材质：PVC\n说明：食育教室使用规范说明，定制",null,1,"块",80,80]
[4,"礼仪规范板","材质：PVC\n说明：饮食礼仪及餐具使用礼仪说明，定制",null,1,"块",80,80]
[5,"食材认知板","材质：PVC\n说明：四种经典食材介绍，定制",null,1,"块",80,80]
[6,"操作图","材质：PVC\n说明：LOGO主墙及部分工艺展示，定制",null,1,"块",370,370]
[7,"磁性贴","材质：PVC软胶\n尺寸：50mm左右；23件/套",null,1,"套",98,98]
[8,"围裙挂钩","材质：楠竹\n尺寸：700*35mm\n",null,1,"套",310,310]
[9,"分类垃圾桶","√材质：塑料\n尺寸：≥长510mm宽280mm高430mm\n总容量：36L\n用途：垃圾分类",null,1,"件",498,498]
[10,"垃圾分类贴纸","材质：背胶贴纸\n说明：垃圾桶分类贴纸，定制\n用途：标签",null,1,"套",25,25]
[11,"授牌","材质：不锈钢。面板烤漆。\n标配：膨胀螺丝2个，麻绳长约2米      尺寸：600*400mm",null,1,"块",300,300]
[12,"玻璃胶","√特性：中性，防霉，耐候，耐臭氧\n尺寸：≥长230mm宽47mm\n容量：300ml/瓶\n用途：粘接环创图，丰富教室",null,1,"瓶",30,30]
[13,"玻璃胶枪","材质：铝合金，钢材。半筒式喷漆工艺。",null,1,"个",100,100]
["合计（元）",{"$nulls":6},{"$f":"SUM(H3:H101)","v":30393}]